fUST/lending_fUST_20250912
["ID","MTS","AMOUNT","RATE_DAILY","PERIOD"]
[384884388,1757615443926,-492.76,0.00013746,2]
[384884389,1757615443935,-480.0,0.00013746,2]
[384884390,1757615443944,-182.761656,0.00013746,2]
[384884391,1757615443953,-182.761656,0.00013746,2]
[384884392,1757615443964,-182.761656,0.00013746,2]
[384884393,1757615443976,-182.761656,0.00013746,2]
[384884394,1757615443985,-182.761656,0.00013746,2]
[384884395,1757615443994,-182.761656,0.00013746,2]
[384884396,1757615444003,-182.761656,0.00013746,2]
[384884397,1757615444012,-182.761656,0.00013746,2]
[384884398,1757615444022,-480.0,0.00013746,2]
[384884399,1757615444031,-480.0,0.00013746,2]
[384884400,1757615444041,-151.0,0.00013746,2]
[384884401,1757615444050,-151.0,0.00013746,2]
[384884402,1757615444059,-151.0,0.00013746,2]
[384884403,1757615444070,-151.0,0.00013746,2]
[384884404,1757615444079,-151.0,0.00013746,2]
[384884405,1757615444088,-151.0,0.00013746,2]
[384884406,1757615444097,-480.0,0.00013746,2]
[384884407,1757615444106,-480.0,0.00013746,2]
[384884408,1757615444115,-480.0,0.00013746,2]
[384884409,1757615444124,-480.0,0.00013746,2]
[384884410,1757615444133,-882.44,0.00013746,2]
[384884411,1757615444142,-480.0,0.00013746,2]
[384884412,1757615444151,-480.0,0.00013746,2]
[384884413,1757615444164,-151.0,0.00013746,2]
[384884414,1757615444174,-151.0,0.00013746,2]
[384884415,1757615444183,-151.0,0.00013746,2]
[384884416,1757615444192,-151.0,0.00013746,2]
[384884417,1757615444201,-151.0,0.00013746,2]
[384884418,1757615444211,-151.0,0.00013746,2]
[384884419,1757615444220,-771.31,0.00013746,2]
[384884420,1757615444230,-480.0,0.00013746,2]
[384884421,1757615444240,-480.0,0.00013746,2]
[384884422,1757615444250,-480.0,0.00013746,2]
[384884423,1757615444268,-480.0,0.00013746,2]
[384884424,1757615444289,-480.0,0.00013746,2]
[384884425,1757615444302,-185.010046,0.00013746,2]
[384884426,1757615444312,-185.010046,0.00013746,2]
[384884427,1757615444322,-2.87030534,0.00013746,2]
[384884428,1757615444473,-182.13974066,0.00013746,2]
[384884429,1757615444482,-185.010046,0.00013746,2]
[384884430,1757615444491,-185.010046,0.00013746,2]
[384884431,1757615444500,-185.010046,0.00013746,2]
[384884432,1757615444509,-185.010046,0.00013746,2]
[384884433,1757615444519,-185.010038,0.00013746,2]
[384884434,1757615444528,-480.0,0.00013746,2]
[384884435,1757615444537,-480.0,0.00013746,2]
[384884436,1757615444546,-480.0,0.00013746,2]
[384884437,1757615444555,-30.35326491,0.00013746,2]
[384884438,1757615444566,-449.64673509,0.00013746,2]
[384884439,1757615444575,-480.0,0.00013746,2]
[384884440,1757615444585,-480.0,0.00013746,2]
[384884441,1757615444594,-480.0,0.00013746,2]
[384884442,1757615444603,-480.0,0.00013746,2]
[384884443,1757615444612,-480.0,0.00013746,2]
[384884444,1757615444623,-480.0,0.00013746,2]
[384884445,1757615444632,-3034.80388447,0.00013746,2]
[384884446,1757615444647,-3119.67611553,0.00013746,2]
[384884447,1757615444656,-483.60140807,0.00013746,2]
[384884448,1757615444667,-480.0,0.00013746,2]
[384884449,1757615444677,-480.0,0.00013746,2]
[384884450,1757615444687,-480.0,0.00013746,2]
[384884451,1757615444697,-480.0,0.00013746,2]
[384884452,1757615444707,-500.0,0.00013746,2]
[384884453,1757615444715,-1324.57948047,0.00013911,2]
[384884454,1757615444725,-3546.27447224,0.00013911,2]
[384884455,1757615445006,363.3054186,0.00013608,2]
[384884456,1757615445143,-552.94629629,0.00013737,2]
[384884458,1757615445153,-500.0,0.00013737,2]
[384884460,1757615445163,-540.02973055,0.00013737,2]
[384884462,1757615445174,-267.97608734,0.00013737,2]
[384884463,1757615445183,-480.0,0.00013737,2]
[384884464,1757615445192,-480.0,0.00013746,2]
[384884465,1757615445202,-125.69091639,0.00013911,2]
[384884466,1757615445211,-168.0,0.00013967,2]
[384884467,1757615445220,-151.0,0.00013985,2]
[384884468,1757615445229,-151.0,0.00013985,2]
[384884469,1757615445239,-286.82022438,0.00013988,2]
[384884470,1757615445249,-480.0,0.00013989,2]
[384884471,1757615445258,-26015.59041321,0.0001399,2]
[384884473,1757615445270,-15765.38814617,0.0001399,2]
[384884474,1757615445280,-258.21287581,0.00014011,2]
[384884475,1757615445289,-480.0,0.00014011,2]
[384884476,1757615445298,-480.0,0.00014011,2]
[384884477,1757615445307,-699.85600471,0.00014011,2]
[384884478,1757615445319,-175.46399529,0.00014011,2]
[384884479,1757615445328,-480.0,0.00014011,2]
[384884480,1757615445337,-815.21,0.00014011,2]
[384884481,1757615445347,-809.16,0.00014011,2]
[384884489,1757615445563,-151.29,0.00014011,2]
[384884490,1757615445573,-319.49,0.00014011,2]
[384884491,1757615445583,-581.8,0.00014011,2]
[384884492,1757615445593,-597.36,0.00014011,2]
[384884494,1757615445602,-480.0,0.00014011,2]
[384884496,1757615445612,-480.0,0.00014011,2]
[384884497,1757615445622,-480.0,0.00014011,2]
[384884498,1757615445631,-480.0,0.00014011,2]
[384884499,1757615445641,-547.63,0.00014011,2]
[384884500,1757615445650,-480.0,0.00014011,2]
[384884502,1757615445660,-193.03,0.00014011,2]
[384884504,1757615445669,-480.0,0.00014011,2]
[384884506,1757615445678,-480.0,0.00014011,2]
[384884507,1757615445687,-480.0,0.00014011,2]
[384884508,1757615445697,-540.26,0.00014011,2]
[384884509,1757615445706,-542.46,0.00014011,2]
[384884510,1757615445715,-480.0,0.00014011,2]
[384884511,1757615445725,-308.58,0.00014011,2]
[384884512,1757615445734,-480.0,0.00014011,2]
[384884513,1757615445743,-480.0,0.00014018,2]
[384884514,1757615445753,-480.0,0.00014018,2]
[384884515,1757615445763,-480.0,0.00014018,2]
[384884517,1757615445772,-480.0,0.00014018,2]
[384884519,1757615445782,-480.0,0.00014018,2]
[384884520,1757615445791,-480.0,0.00014018,2]
[384884522,1757615445801,-480.0,0.00014018,2]
[384884523,1757615445810,-480.0,0.00014018,2]
[384884524,1757615445820,-480.0,0.00014018,2]
[384884525,1757615445829,-233.06,0.00014018,2]
[384884526,1757615445838,-480.0,0.00014018,2]
[384884527,1757615445850,-480.0,0.00014018,2]
[384884528,1757615445869,-480.0,0.00014018,2]
[384884529,1757615445878,-480.0,0.00014018,2]
[384884530,1757615445888,-262.58,0.00014018,2]
[384884531,1757615445899,-58.53210955,0.00014018,2]
[384884532,1757615445911,-364.68789045,0.00014018,2]
[384884533,1757615445922,-480.0,0.00014018,2]
[384884534,1757615445931,-480.0,0.00014018,2]
[384884535,1757615445940,-351.99,0.00014018,2]
[384884536,1757615445949,-247.71,0.00014018,2]
[384884537,1757615445958,-502.75,0.00014018,2]
[384884538,1757615445969,-480.0,0.00014018,2]
[384884539,1757615445978,-294.64,0.00014018,2]
[384884540,1757615445987,-38.86689724,0.00014019,2]
[384884542,1757615446848,-480.0,0.00013737,2]
[384884543,1757615446858,-118.57568576,0.00014019,2]
[384884544,1757615446867,-298.61212,0.00014019,2]
[384884545,1757615446876,-151.27,0.00014019,2]
[384884546,1757615446885,-480.0,0.00014019,2]
[384884547,1757615446895,-480.0,0.00014019,2]
[384884548,1757615446904,-565.99,0.00014019,2]
[384884549,1757615446913,-580.8,0.00014019,2]
[384884550,1757615446923,-480.0,0.00014019,2]
[384884551,1757615446933,-532.35,0.00014019,2]
[384884552,1757615446943,-480.0,0.00014019,2]
[384884553,1757615446952,-480.0,0.00014019,2]
[384884554,1757615446961,-534.99,0.00014019,2]
[384884555,1757615446970,-480.0,0.00014019,2]
[384884556,1757615446980,-480.0,0.00014019,2]
[384884557,1757615446989,-480.0,0.00014019,2]
[384884558,1757615446998,-226.70940582,0.00014019,2]
[384884559,1757615447013,-253.29059418,0.00014019,2]
[384884560,1757615447023,-118.16406335,0.00014019,2]
[384884561,1757615447035,-361.83593665,0.00014019,2]
[384884562,1757615447044,-480.0,0.00014019,2]
[384884563,1757615447054,-658.19,0.00014019,2]
[384884564,1757615447063,-599.27,0.00014019,2]
[384884565,1757615447072,-480.0,0.00014019,2]
[384884566,1757615447081,-480.0,0.00014019,2]
[384884567,1757615447090,-480.0,0.00014019,2]
[384884568,1757615447100,-151.0,0.0001402,2]
[384884569,1757615447109,-151.0,0.0001402,2]
[384884570,1757615447118,-331.63466773,0.0001402,2]
[384884571,1757615447128,-480.0,0.0001402,2]
[384884572,1757615447137,-480.0,0.0001402,2]
[384884573,1757615447146,-480.0,0.0001402,2]
[384884574,1757615447155,-480.0,0.0001402,2]
[384884575,1757615447164,-480.0,0.0001402,2]
[384884576,1757615447174,-480.0,0.0001402,2]
[384884577,1757615447183,-299.58628061,0.0001402,2]
[384884578,1757615447193,-480.0,0.0001402,2]
[384884579,1757615447202,-480.0,0.0001402,2]
[384884580,1757615447211,-480.0,0.0001402,2]
[384884581,1757615447220,-151.0,0.0001402,2]
[384884582,1757615447229,-480.0,0.0001402,2]
[384884583,1757615447240,-522.96022686,0.0001402,2]
[384884584,1757615447249,-540.23919134,0.0001402,2]
[384884585,1757615447258,-480.0,0.0001402,2]
[384884586,1757615447267,-152.461785,0.0001402,2]
[384884587,1757615447277,-480.0,0.0001402,2]
[384884588,1757615447287,-480.0,0.0001402,2]
[384884589,1757615447296,-480.0,0.0001402,2]
[384884590,1757615447305,-480.0,0.0001402,2]
[384884591,1757615447315,-480.0,0.0001402,2]
[384884592,1757615447324,-407.9283612,0.0001402,2]
[384884593,1757615447333,-480.0,0.0001402,2]
[384884594,1757615447342,-480.0,0.0001402,2]
[384884595,1757615447352,-480.0,0.0001402,2]
[384884596,1757615447361,-480.0,0.0001402,2]
[384884597,1757615447370,-480.0,0.0001402,2]
[384884598,1757615447379,-497.35,0.0001402,2]
[384884599,1757615447388,-480.0,0.0001402,2]
[384884600,1757615447398,-480.0,0.0001402,2]
[384884601,1757615447407,-624.68435729,0.0001402,2]
[384884602,1757615447416,-480.0,0.0001402,2]
[384884603,1757615447425,-480.0,0.0001402,2]
[384884604,1757615447434,-504.96,0.0001402,2]
[384884605,1757615447444,-480.0,0.0001402,2]
[384884606,1757615447455,-415.47734393,0.0001402,2]
[384884607,1757615447463,-480.0,0.0001402,2]
[384884608,1757615447472,-300.03,0.0001402,2]
[384884609,1757615447481,-480.0,0.0001402,2]
[384884610,1757615447491,-480.0,0.0001402,2]
[384884611,1757615447500,-480.0,0.0001402,2]
[384884612,1757615447509,-381.46220789,0.0001402,2]
[384884613,1757615447519,-376.78,0.0001402,2]
[384884614,1757615447528,-480.0,0.0001402,2]
[384884615,1757615447537,-480.0,0.0001402,2]
[384884616,1757615447546,-480.0,0.0001402,2]
[384884617,1757615447555,-480.0,0.0001402,2]
[384884618,1757615447564,-480.0,0.0001402,2]
[384884619,1757615447573,-480.0,0.0001402,2]
[384884620,1757615447582,-480.0,0.0001402,2]
[384884621,1757615447591,-480.0,0.0001402,2]
[384884622,1757615447600,-361.19,0.0001402,2]
[384884623,1757615447609,-480.0,0.0001402,2]
[384884624,1757615447617,-480.0,0.0001402,2]
[384884625,1757615447627,-480.0,0.0001402,2]
[384884626,1757615447636,-480.0,0.0001402,2]
[384884627,1757615447645,-480.0,0.0001402,2]
[384884628,1757615447653,-480.0,0.0001402,2]
[384884629,1757615447662,-1181.65,0.0001402,2]
[384884630,1757615447671,-681.79,0.0001402,2]
[384884631,1757615447681,-2678.08,0.0001402,2]
[384884632,1757615447689,-480.0,0.0001402,2]
[384884633,1757615447698,-622.16,0.0001402,2]
[384884634,1757615447707,-480.0,0.0001402,2]
[384884635,1757615447715,-480.0,0.0001402,2]
[384884636,1757615447724,-882.44,0.0001402,2]
[384884637,1757615447733,-771.31,0.0001402,2]
[384884638,1757615447743,-480.0,0.0001402,2]
[384884639,1757615447752,-480.0,0.0001402,2]
[384884640,1757615447761,-480.0,0.0001402,2]
[384884641,1757615447770,-480.0,0.0001402,2]
[384884642,1757615447779,-480.0,0.0001402,2]
[384884643,1757615447788,-480.0,0.0001402,2]
[384884644,1757615447797,-6154.48,0.0001402,2]
[384884645,1757615447806,-480.0,0.0001402,2]
[384884646,1757615447815,-480.0,0.0001402,2]
[384884647,1757615447824,-480.0,0.0001402,2]
[384884648,1757615447832,-168.0,0.00014028,2]
[384884649,1757615447841,-530.95967032,0.00014053,2]
[384884650,1757615447851,-160.0,0.00014053,2]
[384884651,1757615447859,-160.0,0.00014053,2]
[384884652,1757615447868,-217.69300629,0.00014053,2]
[384884653,1757615447876,-160.0,0.00014053,2]
[384884654,1757615447885,-846.96613202,0.00014053,2]
[384884655,1757615447894,-233.10680167,0.00014053,2]
[384884656,1757615447903,-417.15472785,0.00014054,2]
[384884657,1757615447912,-160.0,0.00014054,2]
[384884658,1757615447921,-250.0,0.00014236,2]
[384884659,1757615447930,-4427.7524868,0.00014239,2]
[384884660,1757615447939,-152.382567,0.00014239,2]
[384884661,1757615447948,-168.0,0.00014259,2]
[384884662,1757615447958,-1027.442,0.00014272,2]
[384884663,1757615447966,-195.09753074,0.00014272,2]
[384884664,1757615447975,-1056.71857488,0.00014279,2]
[384884665,1757615447984,-2555.18946963,0.00014279,2]
[384884666,1757615447993,-151.0,0.00014285,2]
[384884667,1757615448001,-151.0,0.00014285,2]
[384884668,1757615448010,-875.32,0.00014285,2]
[384884669,1757615448019,-480.0,0.00014285,2]
[384884670,1757615448028,-815.21,0.00014285,2]
[384884671,1757615448036,-809.16,0.00014285,2]
[384884672,1757615448045,-581.8,0.00014285,2]
[384884673,1757615448054,-480.0,0.00014285,2]
[384884674,1757615448063,-480.0,0.00014285,2]
[384884675,1757615448072,-480.0,0.00014285,2]
[384884676,1757615448081,-372.11,0.00014285,2]
[384884677,1757615448090,-547.63,0.00014285,2]
[384884678,1757615448098,-480.0,0.00014285,2]
[384884679,1757615448107,-480.0,0.00014285,2]
[384884680,1757615448116,-287.24,0.00014285,2]
[384884681,1757615448125,-480.0,0.00014285,2]
[384884682,1757615448135,-540.26,0.00014285,2]
[384884683,1757615448144,-542.46,0.00014285,2]
[384884684,1757615448153,-480.0,0.00014285,2]
[384884685,1757615448165,-444.04,0.00014285,2]
[384884686,1757615448175,-2105.41764886,0.00014286,2]
[384884687,1757615448184,-480.0,0.00014292,2]
[384884688,1757615448194,-480.0,0.00014292,2]
[384884689,1757615448203,-523.40854143,0.00014292,2]
[384884690,1757615448214,-469.28,0.00014292,2]
[384884691,1757615448225,-480.0,0.00014292,2]
[384884692,1757615448235,-480.0,0.00014292,2]
[384884693,1757615448244,-221.62,0.00014292,2]
[384884694,1757615448253,-480.0,0.00014292,2]
[384884695,1757615448262,-502.75,0.00014292,2]
[384884696,1757615448272,-480.0,0.00014292,2]
[384884697,1757615448281,-200.0,0.00014293,2]
[384884698,1757615448290,-480.0,0.00014293,2]
[384884699,1757615448300,-532.35,0.00014293,2]
[384884700,1757615448309,-480.0,0.00014293,2]
[384884701,1757615448318,-480.0,0.00014293,2]
[384884702,1757615448328,-534.99,0.00014293,2]
[384884703,1757615448337,-204.9,0.00014293,2]
[384884704,1757615448347,-480.0,0.00014293,2]
[384884705,1757615448356,-658.19,0.00014293,2]
[384884706,1757615448365,-599.27,0.00014293,2]
[384884707,1757615448375,-480.0,0.00014293,2]
[384884708,1757615448384,-157.0,0.00014294,2]
[384884709,1757615448393,-480.0,0.00014294,2]
[384884710,1757615448403,-154.34,0.00014294,2]
[384884711,1757615448412,-340.96,0.00014294,2]
[384884712,1757615448422,-480.0,0.00014294,2]
[384884713,1757615448431,-480.0,0.00014294,2]
[384884714,1757615448440,-480.0,0.00014294,2]
[384884715,1757615448453,-1181.65,0.00014294,2]
[384884716,1757615448462,-681.79,0.00014294,2]
[384884717,1757615448472,-2678.08,0.00014294,2]
[384884718,1757615448481,-480.0,0.00014294,2]
[384884719,1757615448490,-463.86,0.00014294,2]
[384884720,1757615448500,-480.0,0.00014294,2]
[384884721,1757615448598,-882.44,0.00014294,2]
[384884722,1757615448608,-771.31,0.00014294,2]
[384884723,1757615448617,-2095.11533084,0.00014294,2]
[384884724,1757615477870,223.57847,0.00013265,2]
[384884728,1757615591272,10000.01,0.00013645,2]
[384884729,1757615591294,10000.01,0.00013645,2]
[384884730,1757615591316,10000.01,0.00013645,2]
[384884731,1757615591338,10000.01,0.00013645,2]
[384884732,1757615591360,10000.01,0.00013645,2]
[384884733,1757615591382,10000.01,0.00013645,2]
[384884734,1757615591404,10000.01,0.00013645,2]
[384884735,1757615591426,10000.01,0.00013645,2]
[384884736,1757615591448,10000.01,0.00013645,2]
[384884737,1757615591470,10000.01,0.00013645,2]
[384884738,1757615591502,15418.36628949,0.00013645,2]
[384884739,1757615600535,383.2954186,0.00013599,2]
[384884740,1757615609492,383.2954186,0.00013599,2]
[384884741,1757615643124,1500.0,0.00013599,2]
[384884742,1757615666893,1200.0,0.00013599,2]
[384884743,1757615676647,666.0,0.00012901,2]
[384884744,1757615689345,1200.0,0.00013599,2]
[384884745,1757615713041,1500.0,0.00013599,2]
[384884746,1757615725923,10000.01,0.00012853,2]
[384884747,1757615726152,10000.01,0.00012853,2]
[384884748,1757615726174,6899.5885233,0.00012853,2]
[384884750,1757615736655,401.41936694,0.00013599,2]
[384884753,1757615775356,292.0,0.00013646,2]
[384884755,1757615798150,500.0,0.0001442,7]
[384884756,1757615798468,500.0,0.0001442,7]
[384884757,1757615798813,500.0,0.0001442,7]
[384884758,1757615799130,500.0,0.0001442,7]
[384884759,1757615799444,500.0,0.0001442,7]
[384884760,1757615799807,500.0,0.0001442,7]
[384884761,1757615800141,500.0,0.0001442,7]
[384884762,1757615800551,500.0,0.0001442,7]
[384884763,1757615800792,376.0,0.0001442,7]
[384884776,1757615960509,283.419958,0.00013699,2]
[384884777,1757615967910,293.78,0.00012329,2]
[384884778,1757615978270,374.02,0.00012329,2]
[384884780,1757616041739,292.0,0.00013548,2]
[384884782,1757616186814,1000.0,0.00012741,2]
[384884783,1757616204364,850.09,0.00012329,2]
[384884784,1757616245986,450.474851,0.00013699,2]
[384884788,1757616256187,10000.0,0.00012741,2]
[384884789,1757616272907,300.0,0.00013591,2]
[384884790,1757616281364,300.0,0.00013591,2]
[384884791,1757616292149,172.09213466,0.00013646,2]
[384884792,1757616472263,211.23560531,0.00013324,2]
[384884864,1757616632390,172.09213462,0.00013637,2]
[384884893,1757616638212,-1200.0,0.00013728,2]
[384884894,1757616638221,-300.0,0.00013728,2]
[384884895,1757616638230,-2532.65871364,0.00013729,2]
[384884906,1757616640303,-10231.93907255,0.00013729,2]
[384884907,1757616640313,-2030.296672,0.00013729,2]
[384884908,1757616640323,-204.26293389,0.00013729,2]
[384884909,1757616640333,-480.91813019,0.00013734,2]
[384884911,1757616640342,-480.0,0.00013734,2]
[384884912,1757616640355,-480.0,0.00013734,2]
[384884913,1757616640368,-534.07497004,0.00013734,2]
[384884914,1757616640380,-480.0,0.00013735,2]
[384884915,1757616640393,-480.0,0.00013735,2]
[384884916,1757616640405,-1948.81,0.00013735,2]
[384884917,1757616640416,-480.0,0.00013735,2]
[384884918,1757616640428,-480.0,0.00013735,2]
[384884919,1757616640441,-1319.65,0.00013735,2]
[384884920,1757616640453,-480.0,0.00013735,2]
[384884921,1757616640466,-480.0,0.00013735,2]
[384884922,1757616640478,-480.0,0.00013735,2]
[384884923,1757616640490,-480.0,0.00013735,2]
[384884924,1757616640504,-480.0,0.00013735,2]
[384884925,1757616640517,-480.0,0.00013735,2]
[384884926,1757616640530,-480.0,0.00013735,2]
[384884927,1757616640541,-975.89,0.00013735,2]
[384884928,1757616640552,-480.0,0.00013735,2]
[384884929,1757616640564,-480.0,0.00013735,2]
[384884930,1757616640576,-605.04147431,0.00013735,2]
[384884931,1757616640588,-707.37,0.00013735,2]
[384884932,1757616640600,-937.35,0.00013735,2]
[384884933,1757616640613,-480.0,0.00013735,2]
[384884934,1757616640625,-480.0,0.00013735,2]
[384884935,1757616640638,-480.0,0.00013735,2]
[384884936,1757616640648,-480.0,0.00013735,2]
[384884937,1757616640658,-480.0,0.00013735,2]
[384884938,1757616640670,-356.66637305,0.00013735,2]
[384884939,1757616640681,-480.0,0.00013735,2]
[384884940,1757616640694,-480.0,0.00013735,2]
[384884941,1757616640705,-480.0,0.00013735,2]
[384884942,1757616640716,-217.73365829,0.00013735,2]
[384884943,1757616640728,-480.0,0.00013735,2]
[384884944,1757616640739,-795.41,0.00013735,2]
[384884945,1757616640753,-480.0,0.00013735,2]
[384884946,1757616640765,-480.0,0.00013735,2]
[384884947,1757616640777,-480.0,0.00013735,2]
[384884948,1757616640790,-480.0,0.00013735,2]
[384884949,1757616640800,-480.0,0.00013735,2]
[384884950,1757616640810,-480.0,0.00013735,2]
[384884951,1757616640820,-455.61771874,0.00013735,2]
[384884975,1757616643133,-24.38228126,0.00013735,2]
[384884976,1757616643145,-480.0,0.00013735,2]
[384884977,1757616643156,-348.46758612,0.00013735,2]
[384884978,1757616643167,-694.92,0.00013735,2]
[384884979,1757616643178,-480.0,0.00013735,2]
[384884980,1757616643189,-480.0,0.00013735,2]
[384884981,1757616643200,-480.0,0.00013735,2]
[384884982,1757616643211,-254.94686759,0.00013735,2]
[384884983,1757616643222,-480.0,0.00013735,2]
[384884984,1757616643232,-480.0,0.00013735,2]
[384884985,1757616643243,-480.0,0.00013735,2]
[384884986,1757616643254,-480.0,0.00013735,2]
[384884987,1757616643265,-480.0,0.00013736,2]
[384884988,1757616643276,-154.9192243,0.00013736,2]
[384884989,1757616643286,-155.97795409,0.00013736,2]
[384884990,1757616643297,-480.0,0.00013736,2]
[384884991,1757616643309,-480.0,0.00013736,2]
[384884992,1757616643320,-480.0,0.00013736,2]
[384884993,1757616643331,-480.0,0.00013736,2]
[384884994,1757616643342,-480.0,0.00013736,2]
[384884995,1757616643353,-480.0,0.00013736,2]
[384884996,1757616643363,-480.0,0.00013736,2]
[384884997,1757616643375,-480.0,0.00013736,2]
[384884998,1757616643385,-480.0,0.00013736,2]
[384884999,1757616643396,-480.0,0.00013736,2]
[384885000,1757616643407,-480.0,0.00013736,2]
[384885001,1757616643418,-480.0,0.00013736,2]
[384885002,1757616643428,-805.1055594,0.00013736,2]
[384885005,1757616646066,-480.0,0.00013736,2]
[384885006,1757616646076,-480.0,0.00013736,2]
[384885007,1757616646085,-487.47036349,0.00013736,2]
[384885008,1757616646096,-480.0,0.00013736,2]
[384885009,1757616646105,-891.74,0.00013736,2]
[384885010,1757616646114,-480.0,0.00013736,2]
[384885011,1757616646123,-480.0,0.00013736,2]
[384885012,1757616646133,-480.0,0.00013736,2]
[384885013,1757616646142,-480.0,0.00013736,2]
[384885014,1757616646151,-480.0,0.00013736,2]
[384885015,1757616646159,-480.0,0.00013736,2]
[384885016,1757616646169,-480.0,0.00013736,2]
[384885017,1757616646178,-480.0,0.00013736,2]
[384885018,1757616646187,-480.0,0.00013736,2]
[384885019,1757616646196,-480.0,0.00013736,2]
[384885020,1757616646206,-3895.52,0.00013736,2]
[384885021,1757616646215,-480.0,0.00013736,2]
[384885022,1757616646224,-480.0,0.00013736,2]
[384885023,1757616646233,-480.0,0.00013736,2]
[384885024,1757616646242,-480.0,0.00013736,2]
[384885025,1757616646252,-657.15,0.00013736,2]
[384885026,1757616646261,-480.0,0.00013736,2]
[384885027,1757616646270,-357.33771062,0.00013736,2]
[384885028,1757616646279,-480.0,0.00013736,2]
[384885029,1757616646288,-480.0,0.00013736,2]
[384885030,1757616646296,-480.0,0.00013736,2]
[384885031,1757616646306,-480.0,0.00013736,2]
[384885032,1757616646315,-480.0,0.00013736,2]
[384885033,1757616646325,-480.0,0.00013736,2]
[384885034,1757616646335,-957.28,0.00013736,2]
[384885035,1757616646343,-480.0,0.00013736,2]
[384885036,1757616646353,-480.0,0.00013736,2]
[384885037,1757616646362,-480.0,0.00013736,2]
[384885038,1757616646371,-480.0,0.00013736,2]
[384885039,1757616646380,-480.0,0.00013736,2]
[384885040,1757616646390,-812.49,0.00013736,2]
[384885041,1757616646399,-1134.0,0.00013736,2]
[384885042,1757616646408,-480.0,0.00013736,2]
[384885043,1757616646418,-480.0,0.00013736,2]
[384885044,1757616646427,-480.0,0.00013736,2]
[384885045,1757616646436,-480.0,0.00013736,2]
[384885046,1757616646445,-480.0,0.00013736,2]
[384885047,1757616646455,-480.0,0.00013736,2]
[384885048,1757616646463,-480.0,0.00013736,2]
[384885049,1757616646473,-480.0,0.00013736,2]
[384885050,1757616646482,-480.0,0.00013736,2]
[384885051,1757616646491,-246.05,0.00013736,2]
[384885052,1757616646501,-480.0,0.00013736,2]
[384885053,1757616646510,-480.0,0.00013736,2]
[384885054,1757616646519,-480.0,0.00013736,2]
[384885055,1757616646529,-480.0,0.00013736,2]
[384885056,1757616646538,-8137.76,0.00013736,2]
[384885057,1757616646547,-1732.18,0.00013736,2]
[384885058,1757616646556,-500.0,0.00013737,2]
[384885059,1757616646566,-452.157197,0.00013737,2]
[384885060,1757616646583,-27.842803,0.00013737,2]
[384885061,1757616646592,-480.0,0.00013737,2]
[384885062,1757616646601,-480.0,0.00013737,2]
[384885063,1757616646610,-480.0,0.00013737,2]
[384885064,1757616646620,-480.0,0.00013737,2]
[384885065,1757616646630,-296.59840181,0.00013737,2]
[384885066,1757616646640,-187.1,0.00013737,2]